fUST/lending_fUST_20260416
["ID","MTS","AMOUNT","RATE_DAILY","PERIOD"]
[420607762,1776322238588,-46332.1966281,0.000107,2]
[420607763,1776322238599,-19142.75077144,0.000107,2]
[420607767,1776322240786,-495.840245,0.000107,2]
[420607768,1776322240799,-1951.88971912,0.000107,2]
[420607775,1776322243320,-883.33,0.000107,2]
[420607796,1776322246387,-5000.0,0.00010593,2]
[420607797,1776322246397,-4820.3092667,0.000107,2]
[420607804,1776322246548,-9225.33450463,0.000107,2]
[420607805,1776322246560,-7893.77749015,0.000107,2]
[420607818,1776322306547,180.0,3.003e-05,2]
[420607839,1776322881572,-300.0,8.908e-05,2]
[420607840,1776322881592,-300.0,8.909e-05,2]
[420607841,1776322881604,-1797.48,8.909e-05,2]
[420607863,1776323432325,-635.16775901,8.732e-05,2]
[420607864,1776323432336,-284.38749438,8.732e-05,2]
[420607865,1776323432382,-4007.10796307,8.732e-05,2]
[420607875,1776323440090,-748.87121801,8.645e-05,2]
[420607876,1776323440100,-542.0,8.732e-05,2]
[420607877,1776323440110,-244.23353175,8.91e-05,2]
[420607878,1776323440119,-1201.95535355,9e-05,2]
[420607879,1776323440131,-2544.2877907,9e-05,2]
[420607880,1776323440146,-2740.71685575,9e-05,2]
[420607881,1776323440155,-169.1582909,9.749e-05,2]
[420607882,1776323440165,-343.31799878,0.00010014,2]
[420607883,1776323440175,-500.0,0.00010014,2]
[420607884,1776323440185,-500.0,0.00010014,2]
[420607885,1776323440194,-500.0,0.00010014,2]
[420607887,1776323440203,-500.0,0.00010014,2]
[420607889,1776323440212,-500.0,0.00010014,2]
[420607890,1776323440222,-500.0,0.00010014,2]
[420607892,1776323440232,-500.0,0.00010014,2]
[420607894,1776323440241,-500.0,0.00010014,2]
[420607896,1776323440251,-500.0,0.00010014,2]
[420607898,1776323440260,-500.0,0.00010014,2]
[420607900,1776323440270,-1114.0,0.00010015,2]
[420607902,1776323440279,-1114.0,0.00010015,2]
[420607904,1776323440289,-1114.0,0.00010015,2]
[420607906,1776323440301,-1114.0,0.00010015,2]
[420607908,1776323440310,-1114.0,0.00010015,2]
[420607910,1776323440321,-1114.0,0.00010015,2]
[420607911,1776323440331,-1114.0,0.00010015,2]
[420607912,1776323440342,-1114.0,0.00010015,2]
[420607913,1776323440351,-1114.0,0.00010015,2]
[420607914,1776323440360,-1114.0,0.00010015,2]
[420607916,1776323440369,-1114.0,0.00010015,2]
[420607917,1776323440378,-1114.0,0.00010015,2]
[420607919,1776323440387,-1114.0,0.00010015,2]
[420607921,1776323440396,-1114.0,0.00010015,2]
[420607923,1776323440405,-1114.0,0.00010015,2]
[420607925,1776323440415,-1114.0,0.00010015,2]
[420607926,1776323440423,-1114.0,0.00010015,2]
[420607928,1776323440432,-1114.0,0.00010015,2]
[420607929,1776323440441,-1114.0,0.00010015,2]
[420607930,1776323440450,-1114.0,0.00010015,2]
[420607931,1776323440460,-1114.0,0.00010015,2]
[420607932,1776323440469,-871.0,0.00010015,2]
[420607933,1776323440478,-871.0,0.00010015,2]
[420607934,1776323440488,-871.0,0.00010015,2]
[420607935,1776323440497,-871.0,0.00010015,2]
[420607936,1776323440506,-500.0,0.00010015,2]
[420607937,1776323440517,-871.0,0.00010015,2]
[420607938,1776323440526,-500.0,0.00010015,2]
[420607939,1776323440535,-871.0,0.00010015,2]
[420607940,1776323440544,-500.0,0.00010015,2]
[420607941,1776323440554,-871.0,0.00010015,2]
[420607942,1776323440563,-500.0,0.00010015,2]
[420607943,1776323440573,-871.0,0.00010015,2]
[420607944,1776323440582,-500.0,0.00010015,2]
[420607945,1776323440591,-871.0,0.00010015,2]
[420607946,1776323440600,-500.0,0.00010015,2]
[420607947,1776323440609,-871.0,0.00010015,2]
[420607948,1776323440618,-500.0,0.00010015,2]
[420607949,1776323440628,-871.0,0.00010015,2]
[420607950,1776323440639,-500.0,0.00010015,2]
[420607951,1776323440651,-871.0,0.00010015,2]
[420607952,1776323440662,-500.0,0.00010015,2]
[420607953,1776323440673,-871.0,0.00010015,2]
[420607954,1776323440682,-500.0,0.00010015,2]
[420607955,1776323440691,-871.0,0.00010015,2]
[420607956,1776323440702,-610.70406914,0.00010015,2]
[420607957,1776323440711,-1114.0,0.00010015,2]
[420607958,1776323440720,-871.0,0.00010015,2]
[420607959,1776323440730,-871.0,0.00010015,2]
[420607960,1776323440739,-871.0,0.00010015,2]
[420607961,1776323440748,-1114.0,0.00010015,2]
[420607962,1776323440757,-871.0,0.00010015,2]
[420607963,1776323440767,-871.0,0.00010015,2]
[420607964,1776323440776,-1121.24384436,0.00010015,2]
[420607965,1776323440785,-871.0,0.00010015,2]
[420607966,1776323440795,-871.0,0.00010015,2]
[420607967,1776323440804,-871.0,0.00010015,2]
[420607968,1776323440814,-871.0,0.00010015,2]
[420607969,1776323440823,-888.97823928,0.00010015,2]
[420607970,1776323440832,-200.53658822,0.00010015,2]
[420607971,1776323440842,-500.0,0.00010015,2]
[420607972,1776323440851,-500.0,0.00010015,2]
[420607973,1776323440860,-500.0,0.00010015,2]
[420607974,1776323440870,-500.0,0.00010015,2]
[420607975,1776323440879,-500.0,0.00010015,2]
[420607976,1776323440889,-500.0,0.00010015,2]
[420607977,1776323440898,-500.0,0.00010015,2]
[420607978,1776323440908,-500.0,0.00010015,2]
[420607979,1776323440917,-631.83285162,0.00010015,2]
[420607980,1776323440927,-500.0,0.00010015,2]
[420607981,1776323440936,-500.0,0.00010015,2]
[420607982,1776323440946,-500.0,0.00010015,2]
[420607983,1776323440955,-500.0,0.00010015,2]
[420607984,1776323440964,-500.0,0.00010015,2]
[420607985,1776323440973,-490.21634064,0.00010015,2]
[420607986,1776323440983,-1008.0,0.00010015,2]
[420607987,1776323440992,-1008.0,0.00010015,2]
[420607988,1776323441001,-61.25788402,0.00010015,2]
[420607989,1776323441014,-946.74211598,0.00010015,2]
[420607990,1776323441024,-406.28963859,0.00010015,2]
[420608043,1776323445875,-601.71036141,0.00010015,2]
[420608044,1776323445885,-921.36390762,0.00010015,2]
[420608045,1776323445897,-86.63609238,0.00010015,2]
[420608046,1776323445907,-1008.0,0.00010015,2]
[420608047,1776323445916,-13.36291352,0.00010015,2]
[420608074,1776323446627,-994.63708648,0.00010015,2]
[420608076,1776323446637,-1008.0,0.00010015,2]
[420608078,1776323446646,-1008.0,0.00010015,2]
[420608080,1776323446655,-1008.0,0.00010015,2]
[420608082,1776323446664,-1008.0,0.00010015,2]
[420608084,1776323446673,-1008.0,0.00010015,2]
[420608086,1776323446682,-1008.0,0.00010015,2]
[420608088,1776323446692,-1008.0,0.00010015,2]
[420608090,1776323446701,-77.60187187,0.00010015,2]
[420608128,1776323612607,2482.63535744,3.003e-05,2]
[420608129,1776323667677,-517.36464256,3.003e-05,2]
[420608381,1776324646848,-226.19,8.351e-05,7]
[420608382,1776324646858,-239.34886111,8.359e-05,2]
[420608383,1776324646867,-477.0,8.359e-05,2]
[420608384,1776324646876,-152.0,8.366e-05,7]
[420608385,1776324646885,-961.83906966,8.418e-05,2]
[420608386,1776324646895,-1888.50560347,8.518e-05,2]
[420608387,1776324646903,-526.05746137,8.618e-05,2]
[420608388,1776324646915,-2289.11467591,8.618e-05,2]
[420608389,1776324646924,-1463.68744746,8.718e-05,2]
[420608396,1776324681211,-4684.40732825,8.631e-05,2]
[420608449,1776325724359,977.36,3.005e-05,2]
[420608513,1776325838228,-152.0,8.197e-05,7]
[420608515,1776325838238,-5000.0,8.333e-05,2]
[420608517,1776325838247,-234.56188389,8.42e-05,2]
[420608518,1776325838257,-1798.10565473,8.718e-05,2]
[420608520,1776325838266,-3741.83867109,8.818e-05,2]
[420608522,1776325838275,-150.0,9e-05,2]
[420608524,1776325838285,-1007.217224,9.145e-05,2]
[420608526,1776325838294,-3865.35253485,9.168e-05,2]
[420608528,1776325838303,-1633.265277,9.295e-05,2]
[420608530,1776325838313,-1007.217224,9.53e-05,2]
[420608532,1776325838322,-500.0,9.739e-05,2]
[420608534,1776325838331,-500.0,9.739e-05,2]
[420608536,1776325838340,-500.0,9.739e-05,2]
[420608538,1776325838349,-500.0,9.739e-05,2]
[420608540,1776325838359,-500.0,9.739e-05,2]
[420608541,1776325838367,-500.0,9.739e-05,2]
[420608543,1776325838377,-300.0,9.739e-05,2]
[420608545,1776325838386,-500.0,9.739e-05,2]
[420608547,1776325838396,-500.0,9.739e-05,2]
[420608549,1776325838405,-500.0,9.739e-05,2]
[420608551,1776325838414,-500.0,9.739e-05,2]
[420608553,1776325838423,-500.0,9.739e-05,2]
[420608555,1776325838433,-500.0,9.739e-05,2]
[420608557,1776325838442,-500.0,9.739e-05,2]
[420608559,1776325838451,-500.0,9.739e-05,2]
[420608561,1776325838461,-500.0,9.739e-05,2]
[420608563,1776325838471,-500.0,9.739e-05,2]
[420608565,1776325838480,-500.0,9.739e-05,2]
[420608568,1776325838489,-500.0,9.739e-05,2]
[420608571,1776325838499,-500.0,9.739e-05,2]
[420608573,1776325838508,-500.0,9.739e-05,2]
[420608575,1776325838517,-500.0,9.739e-05,2]
[420608577,1776325838528,-240.32259915,9.74e-05,2]
[420608579,1776325838538,-500.0,9.74e-05,2]
[420608581,1776325838547,-500.0,9.74e-05,2]
[420608583,1776325838556,-500.0,9.74e-05,2]
[420608585,1776325838567,-500.0,9.74e-05,2]
[420608587,1776325838577,-500.0,9.74e-05,2]
[420608589,1776325838586,-500.0,9.74e-05,2]
[420608591,1776325838595,-500.0,9.74e-05,2]
[420608592,1776325838605,-500.0,9.74e-05,2]
[420608594,1776325838615,-603.65525304,9.74e-05,2]
[420608596,1776325838625,-122.62903528,9.74e-05,2]
[420608599,1776325838640,-377.37096472,9.74e-05,2]
[420608601,1776325838650,-500.0,9.74e-05,2]
[420608603,1776325838659,-500.0,9.74e-05,2]
[420608605,1776325838668,-500.0,9.74e-05,2]
[420608606,1776325838678,-500.0,9.74e-05,2]
[420608608,1776325838688,-500.0,9.74e-05,2]
[420608610,1776325838697,-500.0,9.74e-05,2]
[420608612,1776325838706,-500.0,9.74e-05,2]
[420608614,1776325838716,-500.0,9.74e-05,2]
[420608616,1776325838725,-500.0,9.74e-05,2]
[420608618,1776325838734,-500.0,9.74e-05,2]
[420608620,1776325838743,-500.0,9.74e-05,2]
[420608622,1776325838753,-500.0,9.74e-05,2]
[420608623,1776325838762,-500.0,9.74e-05,2]
[420608625,1776325838771,-500.0,9.74e-05,2]
[420608627,1776325838781,-500.0,9.74e-05,2]
[420608629,1776325838790,-400.0,9.74e-05,2]
[420608631,1776325838799,-417.0,9.741e-05,2]
[420608633,1776325838809,-417.0,9.741e-05,2]
[420608635,1776325838817,-417.0,9.741e-05,2]
[420608637,1776325838827,-417.0,9.741e-05,2]
[420608639,1776325838836,-417.0,9.741e-05,2]
[420608641,1776325838846,-417.0,9.741e-05,2]
[420608643,1776325838855,-417.0,9.741e-05,2]
[420608644,1776325838864,-417.0,9.741e-05,2]
[420608646,1776325838875,-417.0,9.741e-05,2]
[420608648,1776325838884,-417.0,9.741e-05,2]
[420608650,1776325838893,-417.0,9.741e-05,2]
[420608652,1776325838903,-417.0,9.741e-05,2]
[420608654,1776325838912,-417.0,9.741e-05,2]
[420608656,1776325838922,-417.0,9.741e-05,2]
[420608658,1776325838931,-417.0,9.741e-05,2]
[420608660,1776325838940,-417.0,9.741e-05,2]
[420608661,1776325838950,-417.0,9.741e-05,2]
[420608663,1776325838959,-417.0,9.741e-05,2]
[420608665,1776325838968,-476.0,9.741e-05,2]
[420608667,1776325838978,-476.0,9.741e-05,2]
[420608669,1776325838987,-417.0,9.741e-05,2]
[420608671,1776325838996,-476.0,9.741e-05,2]
[420608673,1776325839006,-476.0,9.741e-05,2]
[420608675,1776325839015,-476.0,9.741e-05,2]
[420608677,1776325839024,-476.0,9.741e-05,2]
[420608678,1776325839033,-476.0,9.741e-05,2]
[420608680,1776325839042,-476.0,9.741e-05,2]
[420608682,1776325839051,-476.0,9.741e-05,2]
[420608684,1776325839061,-476.0,9.741e-05,2]
[420608686,1776325839071,-417.0,9.741e-05,2]
[420608688,1776325839081,-476.0,9.741e-05,2]
[420608690,1776325839090,-476.0,9.741e-05,2]
[420608692,1776325839099,-476.0,9.741e-05,2]
[420608694,1776325839108,-476.0,9.741e-05,2]
[420608696,1776325839117,-476.0,9.741e-05,2]
[420608698,1776325839126,-476.0,9.741e-05,2]
[420608699,1776325839136,-476.0,9.741e-05,2]
[420608701,1776325839145,-417.0,9.741e-05,2]
[420608703,1776325839155,-476.0,9.741e-05,2]
[420608705,1776325839164,-476.0,9.741e-05,2]
[420608707,1776325839174,-417.0,9.741e-05,2]
[420608709,1776325839184,-476.0,9.741e-05,2]
[420608711,1776325839194,-1293.59578977,9.741e-05,2]
[420608713,1776325839207,-331.40421023,9.741e-05,2]
[420608715,1776325839217,-1105.80626491,9.741e-05,2]
[420608839,1776325840492,-519.19373509,9.741e-05,2]
[420608841,1776325840502,-1625.0,9.741e-05,2]
[420608843,1776325840511,-1625.0,9.741e-05,2]
[420608844,1776325840521,-1570.33823313,9.741e-05,2]
[420608848,1776325840547,-54.66176687,9.741e-05,2]
[420608850,1776325840556,-1625.0,9.741e-05,2]
[420608852,1776325840567,-1625.0,9.741e-05,2]
[420608854,1776325840576,-1625.0,9.741e-05,2]
[420608856,1776325840585,-1625.0,9.741e-05,2]
[420608858,1776325840595,-417.0,9.741e-05,2]
[420608860,1776325840605,-1625.0,9.741e-05,2]
[420608861,1776325840614,-1625.0,9.741e-05,2]
[420608863,1776325840624,-476.0,9.741e-05,2]
[420608865,1776325840635,-1625.0,9.741e-05,2]
[420608867,1776325840644,-1625.0,9.741e-05,2]
[420608869,1776325840653,-1625.0,9.741e-05,2]
[420608871,1776325840663,-1625.0,9.741e-05,2]
[420608873,1776325840674,-1625.0,9.741e-05,2]
[420608875,1776325840683,-476.0,9.741e-05,2]
[420608877,1776325840692,-423.82758385,9.741e-05,2]
[420608879,1776325840702,-1625.0,9.741e-05,2]
[420608881,1776325840712,-500.0,9.741e-05,2]
[420608883,1776325840721,-500.0,9.741e-05,2]
[420608885,1776325840730,-500.0,9.741e-05,2]
[420608887,1776325840739,-400.0,9.741e-05,2]
[420608889,1776325840749,-1625.0,9.741e-05,2]
[420608891,1776325840758,-476.0,9.741e-05,2]
[420608893,1776325840768,-1625.0,9.741e-05,2]
[420608895,1776325840777,-498.86819691,9.741e-05,2]
[420608896,1776325840787,-1625.0,9.741e-05,2]
[420608898,1776325840796,-1625.0,9.741e-05,2]
[420608900,1776325840806,-1625.0,9.741e-05,2]
[420608902,1776325840816,-1625.0,9.741e-05,2]
[420608904,1776325840825,-1633.0,9.741e-05,2]
[420608906,1776325840835,-204.57896724,9.741e-05,2]
[420608908,1776325840844,-151.5,9.741e-05,2]
[420608910,1776325840854,-189.06948478,9.741e-05,2]
[420608912,1776325840864,-500.0,9.741e-05,2]
[420608914,1776325840873,-500.0,9.741e-05,2]
[420608916,1776325840882,-500.0,9.741e-05,2]
[420608918,1776325840891,-500.0,9.741e-05,2]
[420608920,1776325840900,-647.89399347,9.741e-05,2]
[420608922,1776325840910,-500.0,9.741e-05,2]
[420608924,1776325840919,-584.71454607,9.741e-05,2]
[420608926,1776325840930,-151.5,9.741e-05,2]
[420608927,1776325840939,-500.0,9.741e-05,2]
[420608929,1776325840948,-190361.46142258,9.8e-05,2]
[420608932,1776325840959,-2234.07231819,9.8e-05,2]
[420609012,1776325843060,-4000.0,9.8e-05,2]
[420609026,1776325846161,-300.0,9.702e-05,2]
[420609027,1776325846170,-1146.27340484,9.8e-05,2]
[420609028,1776325846372,-21947.03036072,9.8e-05,2]
[420609049,1776326485201,-3397.67616382,9.414e-05,2]
[420609050,1776326485244,-29.40367096,9.414e-05,2]
[420609051,1776326514689,-501.59632904,9.414e-05,2]
[420609052,1776326514725,-2394.48350574,9.6e-05,2]
[420609054,1776326543904,-501.59632904,9.6e-05,2]
[420609102,1776326898506,-399.97,7e-05,2]
[420609122,1776327032220,-1300.0,9.038e-05,2]
[420609123,1776327032230,-238.0075135,9.084e-05,2]
[420609124,1776327032240,-5000.0,9.129e-05,2]
[420609125,1776327032250,-500.0,9.599e-05,2]
[420609126,1776327032259,-200.0,9.599e-05,2]
[420609127,1776327032272,-500.0,9.599e-05,2]
[420609129,1776327032282,-2062.96893589,9.6e-05,2]
[420609230,1776327038619,-6160.77418309,9.6e-05,2]
[420609231,1776327038630,-51534.25314975,9.7e-05,2]
[420609232,1776327038642,-3536.23883582,9.7e-05,2]
[420609259,1776327044989,-12499.85015473,9.7e-05,2]
[420609260,1776327044999,-500.0,9.743e-05,2]
[420609261,1776327045009,-502.11410168,9.743e-05,2]
[420609262,1776327045019,-2543.0991022,9.79e-05,2]
[420609263,1776327045028,-152.0,9.799e-05,7]
[420609264,1776327045037,-500.0,9.8e-05,2]
[420609265,1776327045046,-20649.93664138,9.8e-05,2]
[420609267,1776327046825,-896.75205161,9.8e-05,2]
[420609268,1776327046837,-7107.2208789,9.8e-05,2]
[420609269,1776327046848,-57400.91493539,9.8e-05,2]
[420609270,1776327046880,-785.90876817,9.8e-05,2]
[420609271,1776327046986,-2452.93688462,9.8e-05,2]
[420609318,1776327319460,489.86469327,8.325e-05,30]
[420609319,1776327320345,489.86469327,8.392e-05,30]
[420609320,1776327321356,489.86469327,8.409e-05,30]
[420609321,1776327322328,489.86469327,8.491e-05,30]
[420609327,1776327608503,-1288.18277581,8.242e-05,2]
[420609328,1776327608526,-237.33909155,8.359e-05,2]
[420609329,1776327608551,-3057.3102719,8.392e-05,2]
[420609330,1776327608572,-1200.0,8.489e-05,2]
[420609331,1776327608593,-300.0,8.49e-05,2]
[420609332,1776327608613,-1200.0,8.49e-05,2]
[420609333,1776327608634,-300.0,8.49e-05,2]
[420609334,1776327608656,-300.0,8.49e-05,2]
[420609335,1776327608677,-300.0,8.49e-05,2]
[420609336,1776327608699,-300.0,8.49e-05,2]
[420609337,1776327608725,-1517.16786074,8.492e-05,2]
[420609338,1776327617639,-5107.39284897,8.492e-05,2]
[420609339,1776327617660,-4892.60715103,8.492e-05,2]
[420609340,1776327625553,195.9458773,8.592e-05,30]
[420609341,1776327626427,293.91881596,8.873e-05,30]
[420609490,1776328232594,-631.87264066,8.042e-05,2]
[420609518,1776328238959,-2831.78523744,8.042e-05,2]
[420609520,1776328241239,-30.68072685,8.042e-05,2]
[420609521,1776328241254,-1288.72719031,8.042e-05,2]
[420609529,1776328246945,-216.93420474,8.042e-05,2]
[420609530,1776328246955,-4385.39840304,8.123e-05,2]
[420609531,1776328247253,-259.30588397,8.123e-05,2]
[420609532,1776328247264,-239.78533893,8.247e-05,2]
[420609533,1776328247274,-300.0,8.588e-05,2]
[420609534,1776328247284,-7357.70041834,8.592e-05,2]
[420609535,1776328247294,-879.4603811,8.597e-05,2]
[420609536,1776328247304,-165.04577963,8.671e-05,2]
[420609537,1776328247314,-7600.82227414,8.692e-05,2]
[420609538,1776328247324,-217.85898201,9.018e-05,2]
[420609539,1776328247333,-452.91991558,9.121e-05,2]
[420609540,1776328247343,-152.0,9.366e-05,7]
[420609541,1776328247354,-21911.42115189,9.572e-05,2]
[420609542,1776328247364,-500.0,9.572e-05,2]
[420609543,1776328247374,-168.2258194,9.572e-05,2]
[420609544,1776328247384,-500.0,9.572e-05,2]
[420609545,1776328247395,-500.0,9.572e-05,2]
[420609546,1776328247405,-500.0,9.572e-05,2]
[420609547,1776328247417,-500.0,9.572e-05,2]
[420609548,1776328247426,-500.0,9.572e-05,2]
[420609549,1776328247437,-500.0,9.572e-05,2]
[420609550,1776328247446,-500.0,9.572e-05,2]
[420609551,1776328247456,-500.0,9.572e-05,2]
[420609552,1776328247467,-500.0,9.572e-05,2]
[420609553,1776328247477,-500.0,9.572e-05,2]
[420609554,1776328247486,-614.06729236,9.572e-05,2]
[420609555,1776328247496,-500.0,9.572e-05,2]
[420609556,1776328247506,-500.0,9.572e-05,2]
[420609557,1776328247516,-500.0,9.572e-05,2]
[420609558,1776328247526,-500.0,9.572e-05,2]
[420609559,1776328247538,-579.84710465,9.572e-05,2]
[420609560,1776328247547,-275.44759971,9.572e-05,2]
[420609802,1776329432664,-657.47033685,3.751e-05,2]
[420609809,1776329432717,-534.41153317,3.751e-05,2]
[420609811,1776329432728,-474.03770406,3.751e-05,2]
[420610162,1776329438975,-5000.0,3.713e-05,2]
[420610163,1776329438985,-1328.26863207,3.751e-05,2]
[420610164,1776329438995,-5000.0,3.789e-05,2]
[420610165,1776329439005,-1200.0,3.825e-05,2]
[420610166,1776329439014,-300.0,3.826e-05,2]
[420610167,1776329439024,-151.0,3.826e-05,2]
[420610168,1776329439033,-300.0,3.826e-05,2]
[420610169,1776329439043,-300.0,3.826e-05,2]
[420610170,1776329439052,-243.20561216,3.847e-05,2]
[420610171,1776329439062,-167.0192671,4.189e-05,2]
[420610172,1776329439071,-250.2094114,5.072e-05,2]
[420610173,1776329439081,-286.98262235,5.847e-05,2]
[420610174,1776329439090,-330.75963254,7.847e-05,2]
[420610175,1776329439100,-215.3902553,8.589e-05,2]
[420610176,1776329439109,-152.0,9.288e-05,7]
[420610177,1776329439118,-2150.738,9.329e-05,2]
[420610178,1776329439128,-31693.38643692,9.45e-05,2]
[420610219,1776329446931,-3749.21162246,3.676e-05,2]
[420610220,1776329447090,-1250.78837754,3.676e-05,2]
[420610221,1776329447100,-2363.99515348,9.45e-05,2]
[420610326,1776330631897,-5000.0,7.708e-05,2]
[420610328,1776330631906,-3800.0,7.786e-05,2]
[420610330,1776330631915,-530.0,7.786e-05,2]
[420610332,1776330631924,-225.98665482,7.826e-05,2]
[420610334,1776330631934,-300.0,7.864e-05,2]
[420610336,1776330631944,-152.0,8.204e-05,7]
[420610338,1776330631953,-3374.20210085,8.27e-05,2]
[420610342,1776330631963,-3327.95561434,8.37e-05,2]
[420610346,1776330631974,-1331.37290307,8.37e-05,2]
[420610352,1776330632000,-500.0,8.37e-05,2]
[420610356,1776330632011,-559.62709693,8.37e-05,2]
[420610522,1776330638450,-1517.73552453,8.37e-05,2]
[420610523,1776330638459,-8046.79433519,8.47e-05,2]
[420610524,1776330638469,-401.313,8.617e-05,2]
[420610525,1776330638479,-189.05069296,8.617e-05,2]
[420610526,1776330638488,-500.0,8.668e-05,2]
[420610527,1776330638498,-500.0,8.668e-05,2]
[420610528,1776330638508,-240.17765221,8.668e-05,2]
[420610529,1776330638517,-500.0,8.668e-05,2]
[420610530,1776330638527,-320.07031953,8.668e-05,2]
[420610531,1776330638536,-500.0,8.668e-05,2]
[420610532,1776330638546,-500.0,8.668e-05,2]
[420610533,1776330638556,-500.0,8.668e-05,2]
[420610534,1776330638565,-500.0,8.668e-05,2]
[420610535,1776330638574,-500.0,8.668e-05,2]
[420610536,1776330638584,-500.0,8.668e-05,2]
[420610537,1776330638594,-500.0,8.668e-05,2]
[420610538,1776330638603,-500.0,8.668e-05,2]
[420610539,1776330638612,-500.0,8.668e-05,2]
[420610540,1776330638622,-500.0,8.668e-05,2]
[420610541,1776330638631,-500.0,8.668e-05,2]
[420610542,1776330638640,-345.54197828,8.668e-05,2]
[420610543,1776330638652,-154.45802172,8.668e-05,2]
[420610544,1776330638663,-500.0,8.668e-05,2]
[420610545,1776330638672,-500.0,8.668e-05,2]
[420610546,1776330638682,-500.0,8.668e-05,2]
[420610547,1776330638691,-500.0,8.668e-05,2]
[420610548,1776330638701,-500.0,8.668e-05,2]
[420610549,1776330638710,-500.0,8.668e-05,2]
[420610550,1776330638719,-429.28074881,8.668e-05,2]
[420610551,1776330638731,-70.71925119,8.668e-05,2]
[420610552,1776330638957,-500.0,8.668e-05,2]
[420610553,1776330638975,-500.0,8.668e-05,2]
[420610554,1776330638984,-500.0,8.668e-05,2]
[420610555,1776330638993,-500.0,8.668e-05,2]
[420610556,1776330639003,-411.9010473,8.668e-05,2]
[420610557,1776330639013,-500.0,8.668e-05,2]
[420610558,1776330639022,-500.0,8.668e-05,2]
[420610559,1776330639031,-500.0,8.668e-05,2]
[420610560,1776330639040,-500.0,8.668e-05,2]
[420610561,1776330639050,-500.0,8.668e-05,2]
[420610562,1776330639059,-500.0,8.668e-05,2]
[420610563,1776330639068,-500.0,8.668e-05,2]
[420610564,1776330639078,-500.0,8.668e-05,2]
[420610565,1776330639087,-500.0,8.668e-05,2]
[420610566,1776330639096,-500.0,8.668e-05,2]
[420610567,1776330639106,-500.0,8.668e-05,2]
[420610568,1776330639116,-500.0,8.668e-05,2]
[420610569,1776330639125,-500.0,8.668e-05,2]
[420610570,1776330639135,-500.0,8.668e-05,2]
[420610571,1776330639145,-8856.8975316,8.67e-05,2]
[420610572,1776330639154,-428.9095167,9.12e-05,2]
[420610573,1776330639163,-1713.92242873,9.12e-05,2]
[420610574,1776330639173,-352.09993931,9.2e-05,2]
[420610575,1776330639183,-741.21449941,9.2e-05,2]
[420610576,1776330639194,-5118.26287561,9.3e-05,2]
[420610621,1776330643122,-2907.59361649,9.295e-05,2]
[420610630,1776330646392,-500.0,8.668e-05,2]
[420610631,1776330646402,-500.0,8.668e-05,2]
[420610633,1776330646411,-49290.3796097,9.295e-05,2]
[420610636,1776330646552,-15286.64332034,9.295e-05,2]
[420610637,1776330646605,-44532.22727497,9.295e-05,2]
[420610638,1776330646617,-389.50185657,9.295e-05,2]
[420610775,1776331832171,-5000.0,8.474e-05,2]
[420610777,1776331832182,-221.46692172,8.624e-05,2]
[420610779,1776331832192,-197.018105,8.688e-05,2]
[420610805,1776331832201,-912.32997263,9e-05,2]
[420610807,1776331832441,-299.91497229,9e-05,2]
[420610809,1776331832450,-325.50907067,9e-05,2]
[420610811,1776331832460,-664.20561607,9e-05,2]
[420610813,1776331832469,-321.05,9.011e-05,2]
[420610815,1776331832479,-500.0,9.041e-05,2]
[420610817,1776331832488,-500.0,9.041e-05,2]
[420610819,1776331832497,-500.0,9.041e-05,2]
[420610821,1776331832506,-500.0,9.041e-05,2]
[420610823,1776331832515,-500.0,9.041e-05,2]
[420610825,1776331832524,-628.34590916,9.041e-05,2]
[420610827,1776331832533,-500.0,9.073e-05,2]
[420610829,1776331832543,-500.0,9.073e-05,2]
[420610830,1776331832552,-502.02282754,9.073e-05,2]
[420610832,1776331832561,-500.0,9.073e-05,2]
[420610834,1776331832569,-500.0,9.073e-05,2]
[420610836,1776331832578,-502.89839664,9.073e-05,2]
[420610838,1776331832587,-500.0,9.073e-05,2]
[420610840,1776331832596,-500.0,9.093e-05,2]
[420610842,1776331832605,-500.0,9.093e-05,2]